[Event "December 19 Late 2023"]
[Site "https://www.chess.com"]
[Date "2023.12.19"]
[Round "6"]
[White "GirthyHuell"]
[Black "Harrington, Steve"]
[Result "1-0"]
[Board "141"]
[TimeControl "180+1"]
[BlackFideId "2038730"]
[WhiteElo "2325"]
[BlackElo "2163"]
[BlackTeam "USA"]
[WhiteClock "0:00:11"]
[BlackClock "0:00:00"]

1. e4 {[%clk 0:02:55]}  c5 {[%clk 0:02:59]} 2. d4 {[%clk 0:02:52]}  cxd4 {[%clk 0:02:58]} 3. c3 {[%clk 0:02:52]}  d5 {[%clk 0:02:59]} 4. exd5 {[%clk 0:02:49]}  Qxd5 {[%clk 0:03:00]} 5. Nf3 {[%clk 0:02:48]}  e6 {[%clk 0:02:58]} 6. cxd4 {[%clk 0:02:47]}  Nf6 {[%clk 0:02:58]} 7. Nc3 {[%clk 0:02:47]}  Qd6 {[%clk 0:02:58]} 8. Bc4 {[%clk 0:02:30]}  Be7 {[%clk 0:02:58]} 9. h4 {[%clk 0:02:27]}  Nc6 {[%clk 0:02:56]} 10. Nb5 {[%clk 0:02:21]}  Qb4+ {[%clk 0:02:13]} 11. Bd2 {[%clk 0:02:19]}  Qxc4 {[%clk 0:02:10]} 12. Nc7+ {[%clk 0:02:18]}  Kd8 {[%clk 0:02:09]} 13. Nxa8 {[%clk 0:02:06]}  Nd5 {[%clk 0:01:28]} 14. b3 {[%clk 0:01:47]}  Qa6 {[%clk 0:01:22]} 15. Rc1 {[%clk 0:01:39]}  Bd7 {[%clk 0:01:19]} 16. Ne5 {[%clk 0:01:35]}  Nxe5 {[%clk 0:01:00]} 17. dxe5 {[%clk 0:01:35]}  Bc6 {[%clk 0:01:01]} 18. Qc2 {[%clk 0:00:55]}  Kd7 {[%clk 0:00:41]} 19. Qc4 {[%clk 0:00:48]}  Rxa8 {[%clk 0:00:33]} 20. Qxa6 {[%clk 0:00:47]}  bxa6 {[%clk 0:00:34]} 21. Bg5 {[%clk 0:00:40]}  f6 {[%clk 0:00:25]} 22. exf6 {[%clk 0:00:40]}  gxf6 {[%clk 0:00:25]} 23. Bh6 {[%clk 0:00:36]}  Bb4+ {[%clk 0:00:21]} 24. Bd2 {[%clk 0:00:35]}  Bb5 {[%clk 0:00:19]} 25. Bxb4 {[%clk 0:00:33]}  Nxb4 {[%clk 0:00:19]} 26. Kd2 {[%clk 0:00:28]}  Rd8 {[%clk 0:00:16]} 27. a3 {[%clk 0:00:19]}  Nd5 {[%clk 0:00:16]} 28. Kc2 {[%clk 0:00:18]}  Ke7 {[%clk 0:00:15]} 29. Rhd1 {[%clk 0:00:18]}  a5 {[%clk 0:00:13]} 30. a4 {[%clk 0:00:17]}  Ba6 {[%clk 0:00:12]} 31. Kb2 {[%clk 0:00:18]}  Rb8 {[%clk 0:00:11]} 32. Rd3 {[%clk 0:00:17]}  Rb7 {[%clk 0:00:11]} 33. Rg3 {[%clk 0:00:16]}  Kf7 {[%clk 0:00:11]} 34. h5 {[%clk 0:00:16]}  f5 {[%clk 0:00:10]} 35. h6 {[%clk 0:00:16]}  Kf6 {[%clk 0:00:10]} 36. Rc6 {[%clk 0:00:14]}  Nb4 {[%clk 0:00:08]} 37. Rc5 {[%clk 0:00:11]}  Nd3+ {[%clk 0:00:02]} 38. Rxd3 {[%clk 0:00:11]}  Bxd3 {[%clk 0:00:03]} 39. Rxa5 {[%clk 0:00:11]}  Be4 {[%clk 0:00:01]} 40. f3 {[%clk 0:00:10]}  Bd5 {[%clk 0:00:01]} 41. Kc3 {[%clk 0:00:09]}  Rxb3+ {[%clk 0:00:01]} 42. Kd4 {[%clk 0:00:10]}  Rb7 {[%clk 0:00:01]} 43. Rc5 {[%clk 0:00:10]}  Rd7 {[%clk 0:00:00]} 44. Rc8 {[%clk 0:00:11]} 1-0

[Event "December 19 Late 2023"]
[Site "https://www.chess.com"]
[Date "2023.12.19"]
[Round "6"]
[White "Joel Paul Ganta"]
[Black "Sailer, Mike"]
[Result "0-1"]
[Board "142"]
[TimeControl "180+1"]
[WhiteFideId "35066145"]
[BlackFideId "2012901"]
[WhiteElo "1891"]
[BlackElo "2109"]
[WhiteTeam "IND"]
[BlackTeam "USA"]
[WhiteClock "0:00:20"]
[BlackClock "0:00:36"]

1. Nf3 {[%clk 0:02:55]}  d5 {[%clk 0:03:00]} 2. b3 {[%clk 0:02:55]}  Nf6 {[%clk 0:02:58]} 3. Bb2 {[%clk 0:02:55]}  Bf5 {[%clk 0:02:58]} 4. e3 {[%clk 0:02:55]}  e6 {[%clk 0:02:58]} 5. c4 {[%clk 0:02:55]}  c5 {[%clk 0:02:55]} 6. cxd5 {[%clk 0:02:56]}  exd5 {[%clk 0:02:55]} 7. d4 {[%clk 0:02:56]}  Nc6 {[%clk 0:02:51]} 8. Bd3 {[%clk 0:02:46]}  Bg4 {[%clk 0:02:41]} 9. Nbd2 {[%clk 0:02:43]}  cxd4 {[%clk 0:02:34]} 10. exd4 {[%clk 0:02:44]}  Bd6 {[%clk 0:02:25]} 11. O-O {[%clk 0:02:30]}  O-O {[%clk 0:02:24]} 12. Re1 {[%clk 0:02:21]}  Rc8 {[%clk 0:02:18]} 13. a3 {[%clk 0:02:22]}  Bb8 {[%clk 0:02:10]} 14. h3 {[%clk 0:02:21]}  Bh5 {[%clk 0:02:09]} 15. Rc1 {[%clk 0:02:11]}  Qd6 {[%clk 0:02:08]} 16. Nf1 {[%clk 0:01:59]}  Qf4 {[%clk 0:02:04]} 17. Ng3 {[%clk 0:01:37]}  Bxf3 {[%clk 0:01:59]} 18. Qxf3 {[%clk 0:01:38]}  Qxf3 {[%clk 0:01:47]} 19. gxf3 {[%clk 0:01:39]}  Bf4 {[%clk 0:01:43]} 20. Rc2 {[%clk 0:01:34]}  g6 {[%clk 0:01:24]} 21. Kg2 {[%clk 0:01:22]}  h5 {[%clk 0:01:20]} 22. h4 {[%clk 0:01:18]}  Bc7 {[%clk 0:01:11]} 23. Bc1 {[%clk 0:00:53]}  Bb6 {[%clk 0:01:05]} 24. Bg5 {[%clk 0:00:49]}  Nh7 {[%clk 0:00:47]} 25. Bh6 {[%clk 0:00:38]}  Rfe8 {[%clk 0:00:39]} 26. Bb5 {[%clk 0:00:20]}  Rxe1 {[%clk 0:00:36]} 0-1

[Event "December 19 Late 2023"]
[Site "https://www.chess.com"]
[Date "2023.12.19"]
[Round "6"]
[White "Saim, Mohamed Ilias"]
[Black "Kornyukov, Alexey"]
[Result "1-0"]
[Board "143"]
[TimeControl "180+1"]
[WhiteFideId "7900465"]
[BlackFideId "4150457"]
[WhiteElo "2063"]
[BlackElo "2352"]
[WhiteTeam "ALG"]
[BlackTeam "RUS"]
[WhiteClock "0:00:17"]
[BlackClock "0:00:07"]

1. d4 {[%clk 0:02:33]}  d5 {[%clk 0:02:59]} 2. c4 {[%clk 0:02:33]}  e6 {[%clk 0:02:59]} 3. Nc3 {[%clk 0:02:32]}  c6 {[%clk 0:02:59]} 4. e4 {[%clk 0:02:31]}  dxe4 {[%clk 0:02:59]} 5. Nxe4 {[%clk 0:02:32]}  Bb4+ {[%clk 0:02:59]} 6. Bd2 {[%clk 0:02:33]}  Qxd4 {[%clk 0:02:59]} 7. Bxb4 {[%clk 0:02:33]}  Qxe4+ {[%clk 0:02:59]} 8. Be2 {[%clk 0:02:34]}  Na6 {[%clk 0:02:59]} 9. Bf8 {[%clk 0:02:33]}  Ne7 {[%clk 0:02:59]} 10. Bxe7 {[%clk 0:02:25]}  Kxe7 {[%clk 0:02:57]} 11. Nf3 {[%clk 0:02:23]}  Rd8 {[%clk 0:02:50]} 12. Qc1 {[%clk 0:02:17]}  h6 {[%clk 0:02:36]} 13. h4 {[%clk 0:01:51]}  Nc5 {[%clk 0:02:34]} 14. Kf1 {[%clk 0:01:44]}  e5 {[%clk 0:02:23]} 15. Qc3 {[%clk 0:01:34]}  f6 {[%clk 0:02:18]} 16. h5 {[%clk 0:01:23]}  Bf5 {[%clk 0:01:41]} 17. Rc1 {[%clk 0:01:06]}  Nd3 {[%clk 0:01:23]} 18. Rh4 {[%clk 0:01:02]}  Nf4 {[%clk 0:01:23]} 19. Re1 {[%clk 0:00:54]}  Qc2 {[%clk 0:01:14]} 20. Qxc2 {[%clk 0:00:42]}  Bxc2 {[%clk 0:01:13]} 21. Rxf4 {[%clk 0:00:41]}  exf4 {[%clk 0:01:09]} 22. Bd1+ {[%clk 0:00:39]}  Kf8 {[%clk 0:01:00]} 23. Bxc2 {[%clk 0:00:39]}  Re8 {[%clk 0:01:00]} 24. Rc1 {[%clk 0:00:31]}  Rad8 {[%clk 0:01:00]} 25. Bg6 {[%clk 0:00:29]}  Re7 {[%clk 0:00:58]} 26. g3 {[%clk 0:00:18]}  fxg3 {[%clk 0:00:54]} 27. fxg3 {[%clk 0:00:19]}  c5 {[%clk 0:00:51]} 28. Rc2 {[%clk 0:00:19]}  Rd1+ {[%clk 0:00:47]} 29. Kf2 {[%clk 0:00:19]}  b6 {[%clk 0:00:46]} 30. Nh4 {[%clk 0:00:18]}  Ree1 {[%clk 0:00:44]} 31. Nf5 {[%clk 0:00:17]}  Rf1+ {[%clk 0:00:42]} 32. Kg2 {[%clk 0:00:17]}  Rfe1 {[%clk 0:00:40]} 33. a3 {[%clk 0:00:15]}  Rd3 {[%clk 0:00:36]} 34. b4 {[%clk 0:00:14]}  Red1 {[%clk 0:00:35]} 35. bxc5 {[%clk 0:00:11]}  R3d2+ {[%clk 0:00:35]} 36. Rxd2 {[%clk 0:00:11]}  Rxd2+ {[%clk 0:00:35]} 37. Kf3 {[%clk 0:00:11]}  bxc5 {[%clk 0:00:36]} 38. Ne3 {[%clk 0:00:10]}  Ra2 {[%clk 0:00:35]} 39. Nc2 {[%clk 0:00:11]}  Ke7 {[%clk 0:00:33]} 40. Ke4 {[%clk 0:00:11]}  Kd6 {[%clk 0:00:33]} 41. Kd3 {[%clk 0:00:12]}  Rb2 {[%clk 0:00:32]} 42. Kc3 {[%clk 0:00:11]}  Rb7 {[%clk 0:00:29]} 43. Ne3 {[%clk 0:00:10]}  Rb6 {[%clk 0:00:25]} 44. Nf5+ {[%clk 0:00:10]}  Ke5 {[%clk 0:00:24]} 45. Nxg7 {[%clk 0:00:10]}  Ra6 {[%clk 0:00:20]} 46. Kb3 {[%clk 0:00:10]}  Rd6 {[%clk 0:00:19]} 47. Nf5 {[%clk 0:00:09]}  Rd3+ {[%clk 0:00:18]} 48. Ka4 {[%clk 0:00:09]}  Rf3 {[%clk 0:00:17]} 49. Nxh6 {[%clk 0:00:07]}  Rxg3 {[%clk 0:00:15]} 50. Nf7+ {[%clk 0:00:07]}  Ke6 {[%clk 0:00:13]} 51. h6 {[%clk 0:00:06]}  Rh3 {[%clk 0:00:04]} 52. h7 {[%clk 0:00:07]}  f5 {[%clk 0:00:04]} 53. h8=Q {[%clk 0:00:07]}  Rxh8 {[%clk 0:00:04]} 54. Nxh8 {[%clk 0:00:08]}  Kf6 {[%clk 0:00:04]} 55. Bh5 {[%clk 0:00:08]}  f4 {[%clk 0:00:04]} 56. Bf3 {[%clk 0:00:08]}  Kg7 {[%clk 0:00:03]} 57. Kb5 {[%clk 0:00:09]}  Kxh8 {[%clk 0:00:03]} 58. Kxc5 {[%clk 0:00:10]}  Kg7 {[%clk 0:00:04]} 59. Kd6 {[%clk 0:00:10]}  Kf6 {[%clk 0:00:05]} 60. c5 {[%clk 0:00:11]}  Kg5 {[%clk 0:00:05]} 61. c6 {[%clk 0:00:12]}  Kh4 {[%clk 0:00:06]} 62. c7 {[%clk 0:00:12]}  Kg3 {[%clk 0:00:07]} 63. c8=Q {[%clk 0:00:13]}  Kxf3 {[%clk 0:00:07]} 64. Qh3+ {[%clk 0:00:14]}  Ke2 {[%clk 0:00:07]} 65. Qg2+ {[%clk 0:00:14]}  Ke3 {[%clk 0:00:06]} 66. Qf1 {[%clk 0:00:14]}  f3 {[%clk 0:00:06]} 67. Kc7 {[%clk 0:00:15]}  a5 {[%clk 0:00:06]} 68. Kb7 {[%clk 0:00:16]}  Kd4 {[%clk 0:00:06]} 69. Kb6 {[%clk 0:00:17]}  Kc3 {[%clk 0:00:06]} 70. Kxa5 {[%clk 0:00:17]}  Kb3 {[%clk 0:00:06]} 71. Qxf3+ {[%clk 0:00:17]}  Ka2 {[%clk 0:00:06]} 72. Kb4 {[%clk 0:00:17]}  Kb2 {[%clk 0:00:06]} 73. Qf2+ {[%clk 0:00:17]}  Kc1 {[%clk 0:00:07]} 74. Kc3 {[%clk 0:00:17]}  Kd1 {[%clk 0:00:07]} 75. Qd2# {[%clk 0:00:17]} 1-0

[Event "December 19 Late 2023"]
[Site "https://www.chess.com"]
[Date "2023.12.19"]
[Round "6"]
[White "Slavin, Alexey"]
[Black "Levine, David"]
[Result "1-0"]
[Board "145"]
[TimeControl "180+1"]
[WhiteFideId "24104388"]
[BlackFideId "2011611"]
[WhiteElo "2264"]
[BlackElo "2055"]
[WhiteTeam "RUS"]
[BlackTeam "USA"]
[WhiteClock "0:00:20"]
[BlackClock "0:00:00"]

1. e4 {[%clk 0:02:59]}  e5 {[%clk 0:02:59]} 2. Nf3 {[%clk 0:02:59]}  Nc6 {[%clk 0:03:00]} 3. c3 {[%clk 0:02:59]}  Nf6 {[%clk 0:02:59]} 4. d4 {[%clk 0:02:59]}  exd4 {[%clk 0:02:55]} 5. e5 {[%clk 0:02:59]}  Ne4 {[%clk 0:02:53]} 6. cxd4 {[%clk 0:02:57]}  d5 {[%clk 0:02:52]} 7. Be2 {[%clk 0:02:56]}  Bb4+ {[%clk 0:02:49]} 8. Nbd2 {[%clk 0:02:57]}  O-O {[%clk 0:02:47]} 9. O-O {[%clk 0:02:56]}  f5 {[%clk 0:02:40]} 10. Nxe4 {[%clk 0:02:46]}  dxe4 {[%clk 0:02:32]} 11. Bc4+ {[%clk 0:02:30]}  Kh8 {[%clk 0:02:29]} 12. Ng5 {[%clk 0:02:29]}  Nxd4 {[%clk 0:02:18]} 13. Qh5 {[%clk 0:02:25]}  h6 {[%clk 0:02:01]} 14. Nf7+ {[%clk 0:02:24]}  Rxf7 {[%clk 0:02:01]} 15. Bxf7 {[%clk 0:02:22]}  Qf8 {[%clk 0:01:53]} 16. a3 {[%clk 0:02:06]}  Bc5 {[%clk 0:01:48]} 17. Be3 {[%clk 0:02:05]}  Be6 {[%clk 0:01:45]} 18. Bg6 {[%clk 0:02:00]}  Nb3 {[%clk 0:01:38]} 19. Bxc5 {[%clk 0:01:59]}  Nxc5 {[%clk 0:01:38]} 20. Rac1 {[%clk 0:01:56]}  b6 {[%clk 0:01:30]} 21. b4 {[%clk 0:01:54]}  Nd3 {[%clk 0:01:29]} 22. Rxc7 {[%clk 0:01:54]}  Nxe5 {[%clk 0:01:28]} 23. f4 {[%clk 0:01:42]}  Qd6 {[%clk 0:01:15]} 24. Rfc1 {[%clk 0:01:22]}  Qd4+ {[%clk 0:01:10]} 25. Kh1 {[%clk 0:01:20]}  Nd3 {[%clk 0:01:05]} 26. h3 {[%clk 0:01:10]}  Nxf4 {[%clk 0:00:46]} 27. Qh4 {[%clk 0:00:48]}  Nxg6 {[%clk 0:00:42]} 28. Qg3 {[%clk 0:00:48]}  Kh7 {[%clk 0:00:39]} 29. R1c6 {[%clk 0:00:34]}  f4 {[%clk 0:00:27]} 30. Qe1 {[%clk 0:00:26]}  Bd5 {[%clk 0:00:20]} 31. Rd6 {[%clk 0:00:24]}  Qe5 {[%clk 0:00:20]} 32. Rdd7 {[%clk 0:00:24]}  Rf8 {[%clk 0:00:11]} 33. Rxg7+ {[%clk 0:00:19]}  Qxg7 {[%clk 0:00:11]} 34. Rxg7+ {[%clk 0:00:20]}  Kxg7 {[%clk 0:00:11]} 35. Qc3+ {[%clk 0:00:21]}  Rf6 {[%clk 0:00:00]} 36. Qd4 {[%clk 0:00:20]} 1-0

[Event "December 19 Late 2023"]
[Site "https://www.chess.com"]
[Date "2023.12.19"]
[Round "6"]
[White "Nery Junior, Jose Antonio"]
[Black "Shapiro, Daniel"]
[Result "0-1"]
[Board "146"]
[TimeControl "180+1"]
[WhiteFideId "2104822"]
[BlackFideId "2001780"]
[WhiteElo "2197"]
[BlackElo "2289"]
[WhiteTeam "BRA"]
[BlackTeam "USA"]
[WhiteClock "0:00:00"]
[BlackClock "0:00:18"]

1. e4 {[%clk 0:02:56]}  c5 {[%clk 0:02:58]} 2. Nf3 {[%clk 0:02:54]}  Nc6 {[%clk 0:02:58]} 3. d4 {[%clk 0:02:55]}  cxd4 {[%clk 0:02:58]} 4. Nxd4 {[%clk 0:02:56]}  Nf6 {[%clk 0:02:58]} 5. Nc3 {[%clk 0:02:56]}  d6 {[%clk 0:02:59]} 6. Bg5 {[%clk 0:02:55]}  Qb6 {[%clk 0:02:58]} 7. Nb3 {[%clk 0:02:49]}  e6 {[%clk 0:02:58]} 8. Qd2 {[%clk 0:02:49]}  a6 {[%clk 0:02:56]} 9. f3 {[%clk 0:02:50]}  Be7 {[%clk 0:02:55]} 10. O-O-O {[%clk 0:02:22]}  O-O {[%clk 0:02:53]} 11. Kb1 {[%clk 0:02:18]}  Rd8 {[%clk 0:02:52]} 12. h4 {[%clk 0:01:58]}  Qc7 {[%clk 0:02:51]} 13. h5 {[%clk 0:01:28]}  b5 {[%clk 0:02:50]} 14. h6 {[%clk 0:01:20]}  g6 {[%clk 0:02:48]} 15. Qf4 {[%clk 0:01:19]}  Ne8 {[%clk 0:02:21]} 16. g4 {[%clk 0:01:01]}  Bb7 {[%clk 0:02:17]} 17. Bxb5 {[%clk 0:00:38]}  axb5 {[%clk 0:02:10]} 18. Nxb5 {[%clk 0:00:39]}  Qb6 {[%clk 0:01:48]} 19. Bxe7 {[%clk 0:00:27]}  Nxe7 {[%clk 0:01:44]} 20. Nc3 {[%clk 0:00:21]}  d5 {[%clk 0:01:36]} 21. Qe5 {[%clk 0:00:17]}  f6 {[%clk 0:01:35]} 22. Qf4 {[%clk 0:00:07]}  d4 {[%clk 0:01:26]} 23. Ne2 {[%clk 0:00:07]}  e5 {[%clk 0:01:25]} 24. Qg3 {[%clk 0:00:08]}  Ba6 {[%clk 0:01:10]} 25. Nec1 {[%clk 0:00:07]}  Rac8 {[%clk 0:01:03]} 26. g5 {[%clk 0:00:07]}  Qe6 {[%clk 0:01:04]} 27. Rh2 {[%clk 0:00:07]}  Nd6 {[%clk 0:00:59]} 28. gxf6 {[%clk 0:00:07]}  Qxf6 {[%clk 0:00:59]} 29. Re1 {[%clk 0:00:07]}  Nc4 {[%clk 0:00:41]} 30. Rh4 {[%clk 0:00:07]}  Ne3 {[%clk 0:00:40]} 31. f4 {[%clk 0:00:08]}  Nxc2 {[%clk 0:00:37]} 32. fxe5 {[%clk 0:00:08]}  Qe6 {[%clk 0:00:36]} 33. Rd1 {[%clk 0:00:08]}  d3 {[%clk 0:00:27]} 34. Rf4 {[%clk 0:00:08]}  Nc6 {[%clk 0:00:24]} 35. Nxd3 {[%clk 0:00:08]}  Nxe5 {[%clk 0:00:23]} 36. Rf8+ {[%clk 0:00:06]}  Rxf8 {[%clk 0:00:22]} 37. Nxe5 {[%clk 0:00:07]}  Nb4 {[%clk 0:00:20]} 38. Ng4 {[%clk 0:00:07]}  Qxe4+ {[%clk 0:00:18]} 39. Ka1 {[%clk 0:00:06]}  Nc2+ {[%clk 0:00:18]} 40. Kb1 {[%clk 0:00:00]}  Na3+ {[%clk 0:00:18]} 0-1

[Event "December 19 Late 2023"]
[Site "https://www.chess.com"]
[Date "2023.12.19"]
[Round "6"]
[White "Thake, Conrad"]
[Black "Gumugama"]
[Result "0-1"]
[Board "147"]
[TimeControl "180+1"]
[WhiteFideId "5602947"]
[WhiteElo "1662"]
[BlackElo "2195"]
[WhiteTeam "MLT"]
[WhiteClock "0:00:00"]
[BlackClock "0:00:11"]

1. e4 {[%clk 0:03:00]}  c5 {[%clk 0:02:59]} 2. Nf3 {[%clk 0:02:59]}  Nc6 {[%clk 0:02:58]} 3. d4 {[%clk 0:02:59]}  cxd4 {[%clk 0:02:58]} 4. Nxd4 {[%clk 0:02:59]}  g6 {[%clk 0:02:59]} 5. Nc3 {[%clk 0:02:59]}  Bg7 {[%clk 0:02:59]} 6. Be3 {[%clk 0:02:59]}  Nf6 {[%clk 0:02:56]} 7. Nxc6 {[%clk 0:02:47]}  bxc6 {[%clk 0:02:54]} 8. Bc4 {[%clk 0:02:31]}  O-O {[%clk 0:02:48]} 9. O-O {[%clk 0:02:31]}  d5 {[%clk 0:02:19]} 10. exd5 {[%clk 0:02:29]}  cxd5 {[%clk 0:02:19]} 11. Nxd5 {[%clk 0:02:27]}  Nxd5 {[%clk 0:02:15]} 12. Bxd5 {[%clk 0:02:26]}  Rb8 {[%clk 0:02:15]} 13. Rb1 {[%clk 0:02:00]}  Bf5 {[%clk 0:01:51]} 14. Bb3 {[%clk 0:01:40]}  Qc7 {[%clk 0:01:45]} 15. Qe2 {[%clk 0:01:29]}  a5 {[%clk 0:01:43]} 16. a4 {[%clk 0:01:23]}  Rxb3 {[%clk 0:01:01]} 17. cxb3 {[%clk 0:01:20]}  Bxb1 {[%clk 0:01:01]} 18. Rxb1 {[%clk 0:01:20]}  Rb8 {[%clk 0:01:02]} 19. Qd1 {[%clk 0:01:09]}  Qb7 {[%clk 0:00:58]} 20. Rc1 {[%clk 0:01:02]}  h5 {[%clk 0:00:53]} 21. Bd4 {[%clk 0:00:33]}  Qxb3 {[%clk 0:00:47]} 22. Bxg7 {[%clk 0:00:30]}  Qxd1+ {[%clk 0:00:42]} 23. Rxd1 {[%clk 0:00:30]}  Kxg7 {[%clk 0:00:42]} 24. Rd2 {[%clk 0:00:22]}  Rb4 {[%clk 0:00:41]} 25. g3 {[%clk 0:00:20]}  Rxa4 {[%clk 0:00:41]} 26. Kg2 {[%clk 0:00:20]}  Ra2 {[%clk 0:00:40]} 27. Re2 {[%clk 0:00:18]}  Kf6 {[%clk 0:00:39]} 28. Kf3 {[%clk 0:00:14]}  a4 {[%clk 0:00:39]} 29. Re4 {[%clk 0:00:12]}  e5 {[%clk 0:00:19]} 30. Rb4 {[%clk 0:00:12]}  g5 {[%clk 0:00:17]} 31. h3 {[%clk 0:00:11]}  Kf5 {[%clk 0:00:17]} 32. Rb7 {[%clk 0:00:09]}  f6 {[%clk 0:00:16]} 33. Rb4 {[%clk 0:00:08]}  g4+ {[%clk 0:00:10]} 34. hxg4+ {[%clk 0:00:08]}  hxg4+ {[%clk 0:00:11]} 35. Rxg4 {[%clk 0:00:00]}  a3 {[%clk 0:00:11]} 0-1

[Event "December 19 Late 2023"]
[Site "https://www.chess.com"]
[Date "2023.12.19"]
[Round "6"]
[White "Kniazev, Igor"]
[Black "Vargas, Mauricio"]
[Result "1-0"]
[Board "148"]
[TimeControl "180+1"]
[WhiteFideId "4136349"]
[BlackFideId "4404572"]
[WhiteElo "1853"]
[BlackElo "1982"]
[WhiteTeam "RUS"]
[BlackTeam "COL"]
[WhiteClock "0:00:09"]
[BlackClock "0:00:00"]

1. e4 {[%clk 0:03:00]}  d5 {[%clk 0:02:57]} 2. exd5 {[%clk 0:03:00]}  Qxd5 {[%clk 0:02:58]} 3. Nc3 {[%clk 0:03:00]}  Qa5 {[%clk 0:02:58]} 4. d4 {[%clk 0:02:58]}  c6 {[%clk 0:02:58]} 5. Nf3 {[%clk 0:02:58]}  Nf6 {[%clk 0:02:58]} 6. Bc4 {[%clk 0:02:58]}  Bg4 {[%clk 0:02:58]} 7. h3 {[%clk 0:02:57]}  Bh5 {[%clk 0:02:58]} 8. Bd2 {[%clk 0:02:55]}  Qc7 {[%clk 0:02:57]} 9. g4 {[%clk 0:02:54]}  Bg6 {[%clk 0:02:56]} 10. Ne5 {[%clk 0:02:53]}  e6 {[%clk 0:02:55]} 11. h4 {[%clk 0:02:49]}  Be4 {[%clk 0:02:51]} 12. f3 {[%clk 0:02:36]}  Bd5 {[%clk 0:02:50]} 13. Nxd5 {[%clk 0:02:36]}  Nxd5 {[%clk 0:02:43]} 14. Qe2 {[%clk 0:02:31]}  Bd6 {[%clk 0:02:41]} 15. f4 {[%clk 0:02:24]}  Nd7 {[%clk 0:02:33]} 16. O-O-O {[%clk 0:02:21]}  O-O {[%clk 0:02:05]} 17. h5 {[%clk 0:01:57]}  c5 {[%clk 0:02:04]} 18. Nxd7 {[%clk 0:01:53]}  Qxd7 {[%clk 0:01:59]} 19. dxc5 {[%clk 0:01:50]}  Bxc5 {[%clk 0:01:55]} 20. h6 {[%clk 0:01:39]}  g6 {[%clk 0:01:50]} 21. Bc3 {[%clk 0:01:23]}  Nxc3 {[%clk 0:01:47]} 22. bxc3 {[%clk 0:01:19]}  Ba3+ {[%clk 0:01:44]} 23. Kb1 {[%clk 0:01:18]}  Qc7 {[%clk 0:01:42]} 24. f5 {[%clk 0:01:05]}  Qa5 {[%clk 0:01:27]} 25. Rd3 {[%clk 0:00:58]}  Rac8 {[%clk 0:01:26]} 26. Qe4 {[%clk 0:00:32]}  Rfd8 {[%clk 0:01:08]} 27. fxg6 {[%clk 0:00:29]}  Rxc4 {[%clk 0:00:57]} 28. Rxd8+ {[%clk 0:00:21]}  Qxd8 {[%clk 0:00:55]} 29. gxh7+ {[%clk 0:00:20]}  Kh8 {[%clk 0:00:53]} 30. Qxc4 {[%clk 0:00:19]}  Qb6+ {[%clk 0:00:48]} 31. Qb3 {[%clk 0:00:18]}  Qc5 {[%clk 0:00:47]} 32. Rd1 {[%clk 0:00:16]}  Kxh7 {[%clk 0:00:45]} 33. Rd4 {[%clk 0:00:16]}  Qe7 {[%clk 0:00:39]} 34. Rc4 {[%clk 0:00:15]}  Kxh6 {[%clk 0:00:29]} 35. g5+ {[%clk 0:00:13]}  Kg6 {[%clk 0:00:27]} 36. Rf4 {[%clk 0:00:09]}  Bd6 {[%clk 0:00:25]} 37. Rf1 {[%clk 0:00:09]}  Be5 {[%clk 0:00:22]} 38. Qc4 {[%clk 0:00:09]}  Kg7 {[%clk 0:00:16]} 39. a4 {[%clk 0:00:09]}  Qd6 {[%clk 0:00:12]} 40. Re1 {[%clk 0:00:08]}  Qb6+ {[%clk 0:00:11]} 41. Qb4 {[%clk 0:00:08]}  Qxb4+ {[%clk 0:00:10]} 42. cxb4 {[%clk 0:00:08]}  Bc3 {[%clk 0:00:09]} 43. Re4 {[%clk 0:00:08]}  Kg6 {[%clk 0:00:07]} 44. Rc4 {[%clk 0:00:08]}  Bd2 {[%clk 0:00:04]} 45. b5 {[%clk 0:00:09]}  Bxg5 {[%clk 0:00:00]} 46. Rc7 {[%clk 0:00:09]} 1-0

[Event "December 19 Late 2023"]
[Site "https://www.chess.com"]
[Date "2023.12.19"]
[Round "6"]
[White "Guzman Lozano, Campo Elias"]
[Black "Wu, Derek"]
[Result "0-1"]
[Board "149"]
[TimeControl "180+1"]
[WhiteFideId "4403746"]
[BlackFideId "30914558"]
[WhiteElo "2099"]
[BlackElo "2211"]
[WhiteTeam "COL"]
[BlackTeam "USA"]
[WhiteClock "0:00:36"]
[BlackClock "0:00:27"]

1. f4 {[%clk 0:02:53]}  d6 {[%clk 0:02:55]} 2. e4 {[%clk 0:02:53]}  e5 {[%clk 0:02:55]} 3. d4 {[%clk 0:02:52]}  exd4 {[%clk 0:02:53]} 4. Qxd4 {[%clk 0:02:51]}  Nc6 {[%clk 0:02:51]} 5. Bb5 {[%clk 0:02:51]}  Qf6 {[%clk 0:02:50]} 6. Nf3 {[%clk 0:02:47]}  Bd7 {[%clk 0:02:48]} 7. Qd2 {[%clk 0:02:47]}  O-O-O {[%clk 0:02:44]} 8. Nc3 {[%clk 0:02:47]}  Qg6 {[%clk 0:02:43]} 9. O-O {[%clk 0:02:38]}  Nf6 {[%clk 0:02:41]} 10. f5 {[%clk 0:02:37]}  Qg4 {[%clk 0:02:34]} 11. h3 {[%clk 0:02:35]}  Qg3 {[%clk 0:02:34]} 12. Qf4 {[%clk 0:02:32]}  Qxf4 {[%clk 0:02:27]} 13. Bxf4 {[%clk 0:02:32]}  a6 {[%clk 0:02:27]} 14. Bd3 {[%clk 0:02:30]}  Be7 {[%clk 0:02:21]} 15. a3 {[%clk 0:02:30]}  h6 {[%clk 0:02:10]} 16. Rae1 {[%clk 0:02:29]}  Rhe8 {[%clk 0:02:08]} 17. Nd5 {[%clk 0:02:27]}  Kb8 {[%clk 0:01:50]} 18. Nxe7 {[%clk 0:02:11]}  Rxe7 {[%clk 0:01:50]} 19. c3 {[%clk 0:02:07]}  Rde8 {[%clk 0:01:49]} 20. Nd2 {[%clk 0:02:07]}  Ne5 {[%clk 0:01:47]} 21. Bxe5 {[%clk 0:02:04]}  Rxe5 {[%clk 0:01:48]} 22. Nc4 {[%clk 0:02:04]}  R5e7 {[%clk 0:01:47]} 23. Nd2 {[%clk 0:02:03]}  Bc6 {[%clk 0:01:43]} 24. Rf4 {[%clk 0:01:52]}  d5 {[%clk 0:01:41]} 25. e5 {[%clk 0:01:46]}  Rxe5 {[%clk 0:01:41]} 26. Rxe5 {[%clk 0:01:45]}  Rxe5 {[%clk 0:01:42]} 27. Kf2 {[%clk 0:01:42]}  Kc8 {[%clk 0:01:41]} 28. g4 {[%clk 0:01:41]}  Bb5 {[%clk 0:01:36]} 29. c4 {[%clk 0:01:32]}  Bc6 {[%clk 0:01:22]} 30. Nf3 {[%clk 0:01:25]}  Re7 {[%clk 0:01:08]} 31. Rd4 {[%clk 0:01:20]}  dxc4 {[%clk 0:01:05]} 32. Bxc4 {[%clk 0:01:20]}  b5 {[%clk 0:01:05]} 33. Bb3 {[%clk 0:01:13]}  Ne4+ {[%clk 0:01:02]} 34. Kg1 {[%clk 0:01:05]}  Nc5 {[%clk 0:01:01]} 35. Bd1 {[%clk 0:01:05]}  Kb7 {[%clk 0:00:50]} 36. Kf2 {[%clk 0:01:04]}  Ne4+ {[%clk 0:00:45]} 37. Kg1 {[%clk 0:01:02]}  Kb6 {[%clk 0:00:44]} 38. Bc2 {[%clk 0:01:01]}  Ng3 {[%clk 0:00:36]} 39. Kf2 {[%clk 0:00:58]}  Nh1+ {[%clk 0:00:36]} 40. Kg2 {[%clk 0:00:54]}  Re2+ {[%clk 0:00:35]} 41. Kxh1 {[%clk 0:00:54]}  Bxf3+ {[%clk 0:00:35]} 42. Kg1 {[%clk 0:00:53]}  Rxc2 {[%clk 0:00:36]} 43. Rd7 {[%clk 0:00:53]}  Rxb2 {[%clk 0:00:32]} 44. Rxf7 {[%clk 0:00:52]}  h5 {[%clk 0:00:28]} 45. Rxg7 {[%clk 0:00:51]}  hxg4 {[%clk 0:00:27]} 46. hxg4 {[%clk 0:00:51]}  Rg2+ {[%clk 0:00:27]} 47. Kf1 {[%clk 0:00:51]}  Rxg4 {[%clk 0:00:28]} 48. Re7 {[%clk 0:00:45]}  Bd5 {[%clk 0:00:27]} 49. Ke2 {[%clk 0:00:41]}  Re4+ {[%clk 0:00:26]} 50. Rxe4 {[%clk 0:00:36]}  Bxe4 {[%clk 0:00:27]} 0-1